bitfinex-derivatives/quotes_ETHF0:USTF0_20240901
["timestamp","ask_amount","ask_price","bid_price","bid_amount"]
[1725196416619,4.45018,2471.8,2471.7,0.00606993]
[1725196418220,0.40458,2471.8,2471.7,0.00606993]
[1725196420321,4.45018,2471.8,2471.7,0.00606993]
[1725196420916,4.82348,2471.8,2471.7,0.00606993]
[1725196422516,10.82348,2471.8,2471.7,0.00606993]
[1725196423809,0.40457,2471.9,2471.7,0.00606993]
[1725196424207,3.97146,2472.0,2471.7,0.00606993]
[1725196424414,3.97146,2472.0,2471.7,0.39616993]
[1725196425310,3.2078,2472.0,2471.7,0.39616993]
[1725196425516,3.2078,2472.0,2471.7,0.80075993]
[1725196425708,3.2078,2472.0,2471.7,0.39616993]
[1725196425913,0.41059993,2472.1,2471.7,0.39616993]
[1725196426114,0.00606993,2472.1,2471.7,0.39616993]
[1725196426312,0.00606993,2472.1,2472.0,0.40455]
[1725196426513,0.00606993,2472.1,2472.0,4.45015]
[1725196429019,0.00606993,2472.1,2472.0,4.0456]
[1725196430618,0.00606993,2472.1,2472.0,4.45015]
[1725196435131,0.00606993,2472.1,2472.0,4.85495]
[1725196440422,0.00606993,2472.1,2472.0,5.61155]
[1725196442533,1.055596,2472.3,2472.2,0.40451]
[1725196442829,1.055596,2472.4,2472.3,0.4045]
[1725196443230,1.055596,2472.4,2472.3,4.4493]
[1725196443529,0.00606993,2472.6,2472.5,0.40445]
[1725196443729,0.00606993,2472.6,2472.5,4.44925]
[1725196444836,0.00606993,2472.6,2472.5,4.0448]
[1725196445931,0.00606993,2472.6,2472.5,4.44926]
[1725196446233,0.00606993,2472.6,2472.5,10.44926]
[1725196447034,0.00606993,2472.6,2472.5,15.73892252]
[1725196451042,0.00606993,2472.6,2472.5,18.94672252]
[1725196451739,0.00606993,2472.6,2472.5,27.40391036]
[1725196452130,0.00606993,2472.6,2472.5,23.35911036]
[1725196452336,0.00606993,2472.6,2472.5,27.40391036]
[1725196453137,4.163,2473.2,2473.0,0.40437]
[1725196453341,5.383396,2473.4,2473.0,0.40437]
[1725196454240,2.18166593,2473.4,2473.0,0.41043993]
[1725196454743,2.18166593,2473.4,2473.0,0.81523993]
[1725196454744,1.12606993,2473.4,2473.0,0.81523993]
[1725196455044,2.18166593,2473.4,2473.0,0.81523993]
[1725196455444,1.12606993,2473.4,2473.0,0.41043993]
[1725196456338,1.12606993,2473.4,2473.0,0.81523993]
[1725196456539,1.12606993,2473.4,2473.0,0.41043993]
[1725196456740,1.12606993,2473.4,2473.0,0.81523993]
[1725196456939,1.12606993,2473.4,2473.0,0.41043993]
[1725196457140,1.12606993,2473.4,2473.0,0.81523993]
[1725196457339,1.12606993,2473.4,2473.0,0.41043993]
[1725196457542,1.12606993,2473.4,2473.0,0.81523993]
[1725196458543,1.12606993,2473.4,2473.0,0.41043993]
[1725196458739,1.12606993,2473.4,2473.0,0.81523993]
[1725196459144,1.12606993,2473.4,2473.0,0.41043993]
[1725196459547,1.12606993,2473.4,2473.0,0.81523993]
[1725196459744,1.12606993,2473.4,2473.0,0.41043993]
[1725196459941,1.12606993,2473.4,2473.0,0.81523993]
[1725196460140,1.12606993,2473.4,2473.0,0.41043993]
[1725196460646,1.12606993,2473.4,2473.0,0.81523993]
[1725196461248,1.53038993,2473.4,2473.0,0.41086993]
[1725196461441,0.40434,2473.3,2473.0,0.00606993]
[1725196461942,4.44754,2473.3,2473.0,0.00606993]
[1725196465049,4.44754,2473.3,2473.0,0.41044993]
[1725196465447,0.40434,2473.3,2473.0,0.41044993]
[1725196466151,0.40434,2473.3,2473.0,0.00606993]
[1725196469649,1.459936,2473.3,2473.0,0.00606993]
[1725196473456,1.055596,2473.2,2473.0,0.00606993]
[1725196474355,1.459936,2473.3,2473.0,0.00606993]
[1725196474549,1.055596,2473.2,2473.0,0.00606993]
[1725196475853,1.459956,2473.2,2473.0,0.00606993]
[1725196476649,1.055596,2473.2,2473.0,0.00606993]
[1725196476859,1.58339401,2473.3,2473.0,0.76873993]
[1725196476860,1.055596,2473.3,2473.0,0.76873993]
[1725196477053,1.055596,2473.3,2473.0,0.36436993]
[1725196477246,1.055596,2473.3,2473.1,0.40436]
[1725196477662,1.055596,2473.3,2473.0,0.76874993]
[1725196478463,1.055596,2473.2,2473.0,0.76874993]
[1725196479259,1.055596,2473.2,2473.1,0.40437]
[1725196479469,1.58339401,2473.3,2473.0,0.76873993]
[1725196479470,1.055596,2473.3,2473.0,0.76873993]
[1725196480258,1.055596,2473.2,2473.0,0.36436993]
[1725196481556,1.055596,2473.2,2473.0,0.00606993]
[1725196483662,1.055596,2473.1,2473.0,0.00606993]
[1725196485672,1.58339401,2473.2,2473.0,0.00606993]
[1725196486557,1.05878923,2473.1,2473.0,0.00606993]
[1725196486762,1.05878736,2473.1,2473.0,0.00606993]
[1725196486973,1.58339401,2473.2,2473.0,0.00606993]
[1725196487365,1.05878323,2473.1,2473.0,0.00606993]
[1725196487663,1.58339401,2473.1,2473.0,0.00606993]
[1725196488565,2.11119201,2473.2,2473.0,0.00606993]
[1725196489568,3.04334002,2473.3,2473.0,0.00606993]
[1725196489569,2.11119201,2473.1,2473.0,0.00606993]
[1725196491462,2.89426201,2473.1,2473.0,0.00606993]
[1725196491666,3.42206002,2473.1,2473.0,0.00606993]
[1725196492765,7.46526002,2473.1,2473.0,0.00606993]
[1725196500396,4.82627,2473.1,2473.0,0.00606993]
[1725196500590,10.82627,2473.1,2473.0,0.00606993]
[1725196501293,0.40443,2472.8,2472.6,1.05694073]
[1725196501594,2.6518134,2472.7,2472.6,0.3603]
[1725196501782,2.6518134,2472.8,2472.6,0.76475]
[1725196502292,2.12079585,2472.7,2472.6,0.76475]
[1725196503885,2.12079585,2472.7,2472.6,0.3603]
[1725196507193,6.56922585,2472.7,2472.5,0.00606993]
[1725196507388,1.1067,2472.6,2472.5,0.00606993]
[1725196508398,7.67674585,2472.6,2472.5,0.00606993]
[1725196508697,0.40451,2472.3,2472.0,1.43914073]
[1725196508894,0.40451,2472.3,2471.9,1.43064073]
[1725196508895,1.58874811,2472.1,2471.9,1.43064073]
[1725196509108,1.0591219,2472.0,2471.9,0.3737]
[1725196510297,1.0591219,2472.1,2471.9,0.3737]
[1725196512798,1.4131219,2472.2,2471.9,0.3737]
[1725196513000,3.00187001,2472.2,2471.9,0.3737]
[1725196513302,1.4131219,2472.2,2471.9,0.3737]
[1725196513501,1.0591219,2472.1,2471.9,0.3737]
[1725196514412,1.4438219,2472.1,2471.9,0.3737]
[1725196515207,1.4438219,2472.1,2471.8,3.59]
[1725196515414,1.4438219,2472.1,2471.8,3.2078]
[1725196515415,1.4636819,2471.9,2471.8,3.2078]
[1725196515908,5.5092819,2471.9,2471.8,3.2078]
[1725196516305,5.1047219,2471.9,2471.8,3.2078]
[1725196516502,4.0456,2471.9,2471.8,3.2078]
[1725196517315,4.45016,2471.9,2471.8,3.2078]
[1725196517707,4.45016,2471.9,2471.7,0.39076993]
[1725196517902,0.77428,2471.8,2471.7,0.00606993]
[1725196518914,0.3697,2471.8,2471.7,0.00606993]
[1725196519216,0.40457,2471.9,2471.7,0.00606993]
[1725196519610,0.40458,2471.8,2471.7,0.00606993]
[1725196519809,1.0591219,2472.0,2471.7,0.00606993]
[1725196520006,4.27299183,2472.1,2471.9,0.40455]
[1725196520206,0.00606993,2472.1,2472.0,1.1233]
[1725196522019,0.00606993,2472.1,2472.0,1.52785]
[1725196522209,0.00606993,2472.1,2472.0,5.57345]
[1725196523116,0.00606993,2472.1,2472.0,5.1689]
[1725196524618,0.00606993,2472.1,2472.0,5.57345]
[1725196526022,0.00606993,2472.1,2472.0,5.1689]
[1725196526721,0.00606993,2472.1,2472.0,1.1233]
[1725196527322,0.00606993,2472.1,2471.7,0.00606993]
[1725196527323,4.05166993,2472.1,2471.7,0.00606993]
[1725196527509,0.00606993,2472.1,2471.7,0.00606993]
[1725196527708,0.7364,2472.0,2471.7,0.00606993]
[1725196527909,1.7955219,2472.0,2471.7,0.00606993]
[1725196528220,5.8411219,2472.0,2471.7,0.00606993]
[1725196528414,0.40457,2471.9,2471.7,0.00606993]
[1725196529124,4.45017,2471.9,2471.7,0.00606993]
[1725196529317,0.40457,2471.9,2471.7,0.00606993]
[1725196531617,1.14095,2472.0,2471.7,0.00606993]
[1725196532834,0.7364,2472.0,2471.7,0.00606993]
[1725196533027,1.14095,2472.0,2471.7,0.00606993]
[1725196534124,0.40456,2471.9,2471.7,0.00606993]
[1725196535022,0.40458,2471.8,2471.7,0.00606993]
[1725196537522,4.45018,2471.8,2471.7,0.00606993]
[1725196538314,0.40463,2471.5,2471.3,1.1265]
[1725196538527,0.40462,2471.6,2471.3,1.1265]
[1725196538728,0.40463,2471.5,2471.3,1.1265]
[1725196539821,0.40465,2471.4,2471.2,3.21386993]
[1725196540126,0.40466,2471.3,2471.2,3.21386993]
[1725196540342,0.40466,2471.3,2471.2,0.00606993]
[1725196543025,4.45106,2471.3,2471.2,0.00606993]
[1725196543230,0.40469,2471.2,2471.0,0.3753]
[1725196543826,0.40469,2471.1,2471.0,0.3753]
[1725196544529,0.40472,2471.0,2470.8,0.7629466]
[1725196544727,0.4047,2471.1,2470.8,0.7629466]
[1725196547935,0.7633,2471.1,2470.8,0.7629466]
[1725196549731,0.40472,2471.0,2470.8,0.7629466]
[1725196550119,0.40473,2470.9,2470.8,0.0040466]
[1725196550324,3.99183,2470.9,2470.8,0.0040466]
[1725196550527,8.03903,2470.9,2470.8,0.0040466]
[1725196550828,9.0981519,2470.9,2470.8,0.0040466]
[1725196551423,0.40478,2470.6,2470.4,0.7756]
[1725196551734,0.3765,2470.8,2470.4,0.7756]
[1725196551930,0.40478,2470.6,2470.4,0.7756]
[1725196552230,0.3774,2470.7,2470.2,0.3829]
[1725196552435,0.40479,2470.5,2470.2,0.3829]
[1725196552729,3.2078,2470.6,2470.2,0.3829]
[1725196552730,3.61258,2470.6,2470.2,0.3829]
[1725196552934,3.2078,2470.6,2470.2,0.3829]
[1725196553134,1.44259183,2470.7,2470.3,12.67930277]
[1725196553135,0.00606993,2470.7,2470.3,12.67930277]
[1725196553328,0.00606993,2470.7,2470.6,0.40478]
[1725196553933,0.00606993,2470.7,2470.6,4.45198]
[1725196554626,0.00606993,2470.7,2470.6,4.85678]
[1725196555219,0.00606993,2470.7,2470.6,5.22928]
[1725196557029,0.00606993,2470.7,2470.6,0.3725]
[1725196557737,0.00606993,2470.7,2470.5,0.7586]
[1725196561539,4.05326993,2470.7,2470.3,0.3601]
[1725196561725,4.05326993,2470.7,2470.1,1.14875]
[1725196561726,3.5866,2470.6,2470.1,1.14875]
[1725196561931,3.974,2470.6,2470.2,0.3787]
[1725196563238,4.37878,2470.6,2470.2,0.3787]
[1725196565336,3.974,2470.6,2470.2,0.3787]
[1725196565643,0.40479,2470.5,2470.1,0.7439]
[1725196565835,4.73198,2470.6,2470.1,1.1347]
[1725196566432,3.974,2470.6,2470.1,1.1347]
[1725196566638,0.00606993,2470.7,2470.6,0.40478]
[1725196566841,0.00606993,2470.7,2470.3,3.2078]
[1725196567038,0.00606993,2470.7,2470.6,0.40478]
[1725196567544,0.00606993,2470.7,2470.6,4.45198]
[1725196568141,0.00606993,2470.7,2470.6,5.17558]
[1725196568540,0.00606993,2470.7,2470.6,16.52415494]
[1725196570356,0.00606993,2470.7,2470.6,19.73195494]
[1725196573343,0.00606993,2470.7,2470.6,7.9786]
[1725196573645,0.00606993,2470.7,2470.6,0.7236]
[1725196575447,0.00606993,2470.7,2470.6,1.12838]
[1725196576247,0.00606993,2470.7,2470.6,5.17558]
[1725196576848,0.00606993,2470.7,2470.6,10.37760506]
[1725196578344,1.0591219,2471.2,2470.6,24.30934646]
[1725196578652,5.75174811,2471.3,2471.0,0.4047]
[1725196578653,1.0591219,2471.3,2471.0,0.4047]
[1725196579245,1.0591219,2471.2,2471.0,0.4047]
[1725196579848,1.0591219,2471.2,2471.0,0.7761]
[1725196581358,1.0591219,2471.1,2471.0,0.7761]
[1725196581654,1.0591219,2471.1,2471.0,0.3714]
[1725196582256,1.0591219,2471.1,2470.9,0.00606993]
[1725196582646,1.0591219,2471.0,2470.9,0.00606993]
[1725196583049,1.0591219,2471.1,2470.9,0.00606993]
[1725196583461,1.0591219,2471.0,2470.9,0.00606993]
[1725196584055,1.0591219,2471.0,2470.9,0.41079993]
[1725196584454,1.0591219,2471.0,2470.9,4.45799993]
[1725196584852,1.0591219,2471.0,2470.9,10.45799993]
[1725196585159,1.0591219,2471.1,2471.0,0.40471]
[1725196585458,1.0591219,2471.1,2471.0,7.65971]
[1725196586144,1.0591219,2471.1,2471.0,16.14947401]
[1725196586758,1.0591219,2471.1,2471.0,7.65971]
[1725196586948,1.0591219,2471.1,2471.0,3.61251]
[1725196587859,1.0591219,2471.1,2471.0,4.66945073]
[1725196588054,0.00606993,2471.4,2471.0,3.2078]
[1725196588359,0.00606993,2471.4,2470.9,0.00606993]
[1725196588360,4.428,2471.3,2470.9,0.00606993]
[1725196588559,0.4047,2471.1,2470.9,0.00606993]
[1725196588760,3.6125,2471.1,2470.9,0.00606993]
[1725196588951,4.4111,2471.0,2470.9,0.00606993]
[1725196590254,10.4111,2471.0,2470.9,0.00606993]
[1725196590454,10.7752,2471.0,2470.4,3.2078]
[1725196590654,3.2078,2470.8,2470.4,3.2078]
[1725196591358,3.61255,2470.8,2470.4,3.2078]
[1725196592062,3.2078,2470.8,2470.4,3.2078]
[1725196592269,1.05643536,2470.5,2470.4,3.2078]
[1725196595455,1.05643536,2470.5,2470.1,1.46428814]
[1725196595662,1.46123536,2470.5,2470.1,1.46428814]
[1725196596663,1.46123536,2470.5,2470.1,1.05948814]
[1725196596664,0.40484,2470.2,2470.1,1.05948814]
[1725196596863,0.40484,2470.3,2470.1,1.05948814]
[1725196597164,0.3563,2470.3,2470.1,1.05948814]
[1725196597367,1.58361448,2470.2,2469.9,0.40488]
[1725196597559,1.0557084,2470.1,2470.0,0.3742]
[1725196598154,1.0557084,2470.1,2469.8,0.4049]
[1725196598457,1.0557084,2470.1,2469.7,3.99142]
[1725196598855,1.0557084,2470.1,2469.8,0.4049]
[1725196601055,3.02769281,2470.2,2469.8,0.4049]
[1725196601258,1.44407833,2470.2,2469.8,0.4049]
[1725196601457,1.44407833,2470.2,2469.9,0.3523]
[1725196603967,1.84891833,2470.2,2469.7,3.99141]
[1725196605260,0.40489,2469.9,2469.7,3.5865]
[1725196605574,0.40488,2470.0,2469.7,3.5865]
[1725196606973,3.2078,2470.1,2469.7,3.5865]
[1725196606974,4.6683784,2470.1,2469.7,3.5865]
[1725196607174,0.38836993,2470.2,2469.7,3.99142]
[1725196607175,1.84892833,2470.2,2469.7,3.99142]
[1725196607476,0.40486,2470.1,2469.7,3.99142]
[1725196609563,0.40486,2470.1,2469.7,3.5865]
[1725196609761,0.4049,2469.9,2469.7,3.2078]
[1725196610671,1.44407833,2470.2,2469.7,3.2078]
[1725196610871,1.06177833,2470.2,2469.9,0.40489]
[1725196611070,1.06177833,2470.2,2470.0,0.7442]
[1725196611376,0.41090993,2470.2,2469.8,0.4049]
[1725196611572,0.41090993,2470.2,2469.8,0.3699]
[1725196611773,0.41090993,2470.2,2469.8,0.7748]
[1725196611971,0.00606993,2470.2,2469.9,0.40489]
[1725196612176,0.41091993,2470.2,2469.8,0.77479]
[1725196613773,0.41091993,2470.2,2469.9,0.40489]
[1725196614275,0.41091993,2470.2,2469.8,0.77479]
[1725196615988,0.00606993,2470.2,2469.9,0.40488]
[1725196616476,0.00606993,2470.2,2469.9,0.40489]
[1725196616992,0.41090993,2470.2,2469.8,0.7748]
[1725196619587,0.00606993,2470.2,2469.8,0.7748]
[1725196620383,0.00606993,2470.2,2470.1,0.40486]
[1725196620578,0.00606993,2470.2,2470.1,4.048]
[1725196620776,0.00606993,2470.2,2469.9,8.50293634]
[1725196621083,0.41090993,2470.2,2469.8,0.3699]
[1725196621281,0.41090993,2470.2,2469.8,0.7748]
[1725196621477,0.41090993,2470.2,2469.9,8.65895541]
[1725196621478,0.00606993,2470.2,2469.9,8.65895541]
[1725196621675,0.41090993,2470.2,2470.0,0.737]
[1725196622180,0.00606993,2470.2,2470.0,0.737]
[1725196622774,0.41090993,2470.2,2470.0,0.737]
[1725196623485,0.00606993,2470.2,2470.0,0.737]
[1725196623688,0.41091993,2470.2,2470.0,0.737]
[1725196625178,1.46662833,2470.2,2470.0,0.737]
[1725196625689,1.06177833,2470.2,2470.0,1.14186]
[1725196625879,0.00606993,2470.2,2470.0,1.14186]
[1725196626982,0.00606993,2470.2,2470.0,0.737]
[1725196627287,1.06177833,2470.2,2470.0,0.737]
[1725196627582,1.06177833,2470.2,2470.0,0.3793]
[1725196627775,1.0557084,2470.1,2469.8,0.3699]
[1725196627977,1.06177833,2470.2,2469.9,0.79458]
[1725196628177,1.0557084,2470.1,2469.9,0.79458]
[1725196628579,1.0557084,2470.1,2469.9,0.3897]
[1725196628784,1.0557084,2470.1,2469.9,0.79459]
[1725196629083,1.0557084,2470.1,2469.9,0.3897]
[1725196629290,1.0557084,2470.0,2469.9,0.3897]
[1725196629485,1.58361448,2470.0,2469.9,0.3897]
[1725196629883,1.05616536,2470.0,2469.9,0.3897]
[1725196630278,1.58361448,2470.0,2469.9,0.3897]
[1725196630784,1.05623552,2470.0,2469.9,0.3897]
[1725196631189,1.58361448,2470.1,2469.9,0.3897]
[1725196631779,1.58361448,2470.0,2469.9,0.3897]
[1725196633787,1.05634136,2470.1,2469.9,4.4385]
[1725196633989,1.05634136,2470.1,2470.0,0.40487]
[1725196634681,1.05634136,2470.1,2470.0,4.45367]
[1725196635784,1.05634136,2470.1,2470.0,0.40487]
[1725196635989,1.58361448,2470.1,2469.9,0.3897]
[1725196636286,1.05666967,2470.0,2469.9,0.79459]
[1725196638586,1.05666967,2470.0,2469.9,5.90287814]
[1725196640291,1.58361448,2470.0,2469.9,7.92722957]
[1725196640491,1.58361448,2470.1,2470.0,0.40487]
[1725196640685,1.58968441,2470.2,2470.1,0.40486]
[1725196640995,1.06361676,2470.2,2470.1,9.67147423]
[1725196641189,1.06361676,2470.2,2470.1,4.37888769]
[1725196641498,1.58968441,2470.2,2470.1,2.78965548]
[1725196641681,1.58968441,2470.2,2470.1,1.82689061]
[1725196641881,1.58968441,2470.2,2470.1,3.85108609]
[1725196642191,1.58968441,2470.2,2470.1,3.44622609]
[1725196642386,1.58968441,2470.2,2470.1,3.85108609]
[1725196642791,1.58968441,2470.2,2470.1,3.44622609]
[1725196643193,1.58968441,2470.2,2470.1,1.42203061]
[1725196643993,1.58968441,2470.2,2470.1,1.82689061]
[1725196644296,1.58968441,2470.2,2470.1,1.06143061]
[1725196644698,0.00606993,2470.2,2470.0,1.06143061]
[1725196644891,1.58607789,2470.1,2470.0,1.06143061]
[1725196646303,1.59214782,2470.2,2470.0,1.46630061]
[1725196646508,1.05713046,2470.1,2470.0,0.40487]
[1725196646708,1.05713046,2470.1,2470.0,1.99410221]
[1725196647009,1.05713046,2470.1,2470.0,7.53916331]
[1725196647615,1.05713046,2470.1,2470.0,3.08549331]
[1725196647815,1.58607789,2470.1,2470.0,1.06123208]
[1725196648015,1.59214782,2470.2,2470.0,1.06123208]
[1725196648315,1.58607789,2470.1,2469.9,1.85581208]
[1725196648506,1.58607789,2470.0,2469.9,1.06123208]
[1725196648705,1.94277789,2470.0,2469.8,1.83603208]
[1725196649311,1.94277789,2470.0,2469.8,1.06123208]
[1725196649312,2.34764789,2470.0,2469.8,1.06123208]
[1725196649507,2.34764789,2470.0,2469.7,1.58923221]
[1725196649713,0.76157,2470.0,2469.6,4.74083]
[1725196649914,0.76157,2470.0,2469.6,4.3359]
[1725196651819,0.76157,2470.0,2469.6,4.74084]
[1725196652516,0.40489,2469.9,2469.6,4.3359]
[1725196653011,0.40489,2469.9,2469.6,3.5882]
[1725196653318,3.2078,2469.7,2469.1,3.6134]
[1725196653520,3.2078,2469.7,2469.2,0.7593]
[1725196653521,1.53085,2469.6,2469.2,0.7593]
[1725196653705,1.1259,2469.6,2469.2,0.3543]
[1725196653908,4.163,2469.9,2469.2,0.3543]
[1725196654121,4.163,2469.9,2469.5,0.40494]
[1725196654419,4.163,2469.9,2469.6,1.1116]
[1725196654621,0.40489,2469.9,2469.6,1.1116]
[1725196655919,0.40489,2469.9,2469.6,0.3543]
[1725196656117,3.2078,2469.8,2469.2,1.5184]
[1725196656317,0.40495,2469.6,2469.2,1.1134]
[1725196656513,0.3823,2469.5,2469.2,1.1134]
[1725196656714,1.1192,2469.5,2469.4,1.59233406]
[1725196656909,1.52416,2469.5,2469.4,1.59233406]
[1725196658317,5.57376,2469.5,2469.4,1.59233406]
[1725196658521,6.08735702,2469.8,2469.4,1.99730406]
[1725196658725,3.25455702,2469.8,2469.4,2.75460406]
[1725196659323,0.75813,2469.7,2469.4,2.34963406]
[1725196659618,0.75813,2469.7,2469.4,2.75460406]
[1725196660209,0.75813,2469.7,2469.4,2.34963406]
[1725196661125,0.40494,2469.6,2469.4,2.34963406]
[1725196661425,0.40494,2469.6,2469.4,1.59233406]
[1725196661727,0.40496,2469.5,2469.4,1.59233406]
[1725196662022,1.45915663,2469.5,2469.2,1.1237]
[1725196662531,1.45917663,2469.4,2469.2,1.1237]
[1725196662728,0.3773,2469.3,2469.2,0.3595]
[1725196664419,4.83189,2469.3,2469.0,0.40503]
[1725196664630,4.4269,2469.3,2469.1,0.3783]
[1725196665129,4.0496,2469.2,2469.1,0.3783]
[1725196665430,4.0496,2469.2,2468.9,0.76904]
[1725196665617,0.40501,2469.2,2468.9,1.12714]
[1725196665922,1.05419663,2469.2,2468.9,0.7221]
[1725196666118,0.40503,2469.1,2468.9,0.7221]
[1725196667531,0.40501,2469.2,2468.9,0.7221]
[1725196674739,0.77952,2469.1,2468.9,0.7221]
[1725196675041,0.77952,2469.1,2468.8,0.3905]
[1725196675228,0.3745,2469.1,2468.9,0.3819]
[1725196675729,4.4249,2469.1,2468.9,0.7591]
[1725196679235,0.3745,2469.1,2468.9,0.7591]
[1725196680136,0.3745,2469.1,2468.9,1.16415]
[1725196680442,5.21719663,2469.5,2468.9,0.7591]
[1725196680632,5.21719663,2469.5,2468.9,1.16414]
[1725196680633,0.40499,2469.4,2468.9,1.16414]
[1725196680837,0.76369,2469.3,2468.9,1.16414]
[1725196681238,0.3587,2469.3,2469.0,0.40503]
[1725196681441,0.3587,2469.3,2468.9,1.16415]
[1725196682045,0.7637,2469.3,2468.9,1.16415]
[1725196682246,3.9715,2469.3,2468.9,0.7591]
[1725196682745,0.40501,2469.2,2468.9,0.7591]
[1725196682944,0.7637,2469.3,2468.9,0.7591]
[1725196683144,0.3587,2469.3,2468.9,0.7591]
[1725196683448,3.2078,2469.6,2469.3,0.40499]
[1725196683646,3.2078,2469.6,2469.4,1.1386]
[1725196683939,6.01081663,2469.8,2469.4,1.1386]
[1725196684331,5.60589663,2469.8,2469.4,1.54357]
[1725196684550,1.05419663,2469.8,2469.4,1.1386]
[1725196684847,1.05419663,2470.0,2469.6,0.40493]
[1725196685148,1.05419663,2470.0,2469.4,1.1386]
[1725196685149,1.45906663,2470.0,2469.5,0.40495]
[1725196685338,0.3887,2469.9,2469.5,0.40495]
[1725196686845,0.40491,2469.8,2469.4,1.1386]
[1725196687635,2.22649663,2469.9,2469.4,1.54357]
[1725196687836,0.40491,2469.8,2469.4,1.1386]
[1725196688147,1.45909663,2469.9,2469.4,1.54357]
[1725196689543,1.05419663,2469.9,2469.5,0.40495]
[1725196690041,1.05419663,2469.9,2469.4,1.1386]
[1725196690042,1.45908663,2469.9,2469.4,1.54356]
[1725196690243,0.3611,2469.8,2469.4,1.54356]
[1725196691445,1.41529663,2469.8,2469.4,1.1386]
[1725196691746,1.45912663,2469.7,2469.4,1.1386]
[1725196693040,1.05419663,2469.7,2469.4,1.1386]
[1725196693244,1.05419663,2469.7,2469.4,1.54357]
[1725196693652,1.05419663,2469.6,2469.4,1.54357]
[1725196693841,1.05419663,2469.7,2469.4,1.54357]
[1725196694650,1.05419663,2469.6,2469.4,1.54357]
[1725196695244,1.05419663,2469.6,2469.5,0.40496]
[1725196695539,1.05419663,2469.7,2469.6,0.40494]
[1725196697843,1.58124102,2469.7,2469.5,0.40495]
[1725196698043,1.05512104,2469.6,2469.4,0.7477]
[1725196700755,1.98617102,2469.7,2469.4,0.7477]
[1725196700756,1.05512104,2469.5,2469.4,0.7477]
[1725196703563,1.05512104,2469.6,2469.4,1.15267]
[1725196703761,1.05512104,2469.7,2469.4,0.7477]
[1725196704063,1.05512104,2469.7,2469.6,0.40494]
[1725196704561,1.05512104,2469.7,2469.4,0.7477]
[1725196704755,1.05512104,2469.7,2469.6,0.40494]
[1725196704955,1.05512104,2469.7,2469.5,0.40496]
[1725196705159,1.05512104,2469.7,2469.5,0.40495]
[1725196705359,1.05512104,2469.7,2469.4,1.15266]
[1725196705554,1.05512104,2469.6,2469.4,0.7477]
[1725196705757,1.05512104,2469.6,2469.4,1.15267]
[1725196705954,1.05512104,2469.6,2469.4,5.20227]
[1725196707469,1.05512104,2469.6,2469.4,0.7477]
[1725196708057,1.05512104,2469.6,2469.1,4.26741101]
[1725196708259,1.46010104,2469.4,2469.1,3.9156]
[1725196708570,1.05512104,2469.3,2469.1,3.9156]
[1725196709062,1.46011104,2469.3,2469.1,3.2078]
[1725196709270,1.05512104,2469.2,2469.1,3.2078]
[1725196709469,0.40499,2469.3,2469.1,3.2078]
[1725196709470,1.46011104,2469.3,2469.1,3.2078]
[1725196709666,1.46012104,2469.2,2469.1,3.2078]
[1725196710063,5.50972104,2469.2,2469.1,3.2078]
[1725196711063,0.40504,2469.1,2468.9,0.3542]
[1725196711270,0.40504,2469.0,2468.9,0.3542]
[1725196711575,0.40504,2469.0,2468.8,0.3825]
[1725196712281,1.83150912,2469.0,2468.8,0.3825]
[1725196712577,0.3718,2469.0,2468.8,0.3825]
[1725196712779,1.42646912,2469.0,2468.8,0.3825]
[1725196713992,0.3718,2469.0,2468.8,0.3825]
[1725196714279,0.77684,2469.0,2468.8,0.3825]
[1725196714481,1.83150912,2469.0,2468.8,0.3825]
[1725196716383,0.40505,2468.9,2468.8,0.3825]
[1725196720080,4.0504,2468.9,2468.4,4.67255101]
[1725196720290,1.05466912,2468.7,2468.5,0.78592]
[1725196720485,1.45974912,2468.8,2468.5,0.78592]
[1725196720780,0.4051,2468.6,2468.5,0.3808]
[1725196720980,0.4051,2468.7,2468.5,0.3808]
[1725196721182,0.4051,2468.6,2468.5,0.3808]
[1725196724184,0.4051,2468.6,2468.1,0.81078]
[1725196724185,0.40513,2468.5,2468.1,0.81078]
[1725196724380,0.40513,2468.5,2468.2,0.7493]
[1725196725881,1.45975912,2468.7,2468.3,3.61294]
[1725196726086,1.45974912,2468.8,2468.4,0.40513]
[1725196726277,1.45974912,2468.8,2468.5,0.3665]
[1725196726487,1.45974912,2468.8,2468.6,0.3619]
[1725196726690,1.45974912,2468.8,2468.6,0.7182]
[1725196726989,0.40509,2468.7,2468.6,0.7182]
[1725196727185,0.40509,2468.7,2468.3,0.40514]
[1725196727490,0.4051,2468.6,2468.4,0.3563]
[1725196727881,0.76129,2468.7,2468.4,0.3563]
[1725196728088,0.40509,2468.7,2468.4,0.3563]
[1725196731701,0.40509,2468.7,2468.4,0.76143]
[1725196732696,3.61288,2468.8,2468.4,0.76143]
[1725196732890,0.40509,2468.7,2468.4,0.76143]
[1725196733191,0.40509,2468.7,2468.4,0.3563]
[1725196736197,0.40509,2468.7,2468.4,0.76143]
[1725196736499,0.4051,2468.6,2468.4,0.3563]
[1725196737002,4.4563,2468.6,2468.4,0.3563]
[1725196738093,4.8443,2468.6,2468.4,0.3563]
[1725196738294,0.40512,2468.5,2468.4,0.3563]
[1725196738695,7.66412,2468.5,2468.4,0.3563]
[1725196739492,0.40514,2468.4,2468.3,0.3665]
[1725196739692,0.40514,2468.4,2468.2,0.3548]
[1725196739997,0.40514,2468.4,2468.2,0.7264]
[1725196740397,1.05466912,2468.7,2468.2,1.13156]
[1725196740698,0.40512,2468.6,2468.2,1.13156]
[1725196741092,0.40512,2468.5,2468.2,1.13156]
[1725196741704,0.40512,2468.5,2468.2,0.7264]
[1725196742307,0.78792,2468.5,2468.2,0.7264]
[1725196744708,1.05466912,2468.6,2468.2,0.7264]
[1725196744916,0.40509,2468.7,2468.3,0.40514]
[1725196745208,0.40509,2468.7,2468.4,0.3877]
[1725196745705,0.40509,2468.7,2468.5,0.3786]
[1725196746294,5.58266912,2468.8,2468.5,0.3786]
[1725196746502,0.4051,2468.6,2468.5,0.3786]
[1725196746707,1.45976912,2468.7,2468.5,0.3786]
[1725196747194,1.45976912,2468.7,2468.6,0.372]
[1725196747400,1.05466912,2468.7,2468.6,0.372]